bitfinex/quotes_BTCUSD_20251120
["timestamp","ask_amount","ask_price","bid_price","bid_amount"]
[1763637018209,0.228746,91805.0,91802.0,0.21786017]
[1763637018416,0.251776,91805.0,91802.0,0.21786017]
[1763637019864,0.21785572,91804.0,91802.0,0.21786017]
[1763637020040,0.21785572,91804.0,91800.0,0.40040731]
[1763637020041,0.21785572,91804.0,91801.0,0.21786211]
[1763637020441,0.251776,91805.0,91800.0,0.40040731]
[1763637020442,0.01546,91802.0,91800.0,0.05880854]
[1763637020647,0.21786729,91799.0,91798.0,0.05880854]
[1763637020845,0.21786729,91799.0,91792.0,0.06248854]
[1763637020846,0.02674,91793.0,91792.0,0.06248854]
[1763637021049,0.21788391,91792.0,91791.0,0.05880854]
[1763637021295,0.21789103,91789.0,91787.0,0.05880854]
[1763637021502,0.01089443,91790.0,91780.0,0.46248985]
[1763637021503,0.01546,91785.0,91782.0,0.05880854]
[1763637021705,0.01089478,91787.0,91781.0,0.05880854]
[1763637021706,0.21789987,91786.0,91781.0,0.05880854]
[1763637021886,0.02303,91786.0,91785.0,0.22879341]
[1763637022034,0.02303,91786.0,91783.0,0.05994292]
[1763637022237,0.02674,91784.0,91783.0,0.27784712]
[1763637023956,0.01128,91784.0,91783.0,0.27784712]
[1763637024150,0.01128,91784.0,91783.0,0.26695293]
[1763637025422,0.01128,91784.0,91783.0,0.04904766]
[1763637026823,0.04977,91784.0,91781.0,0.21790971]
[1763637027027,0.02674,91784.0,91782.0,0.21790763]
[1763637027254,0.02674,91784.0,91778.0,0.01457585]
[1763637027668,0.02674,91784.0,91782.0,0.21790551]
[1763637028090,0.24464512,91784.0,91781.0,0.22880543]
[1763637028270,0.02674,91784.0,91782.0,0.21790599]
[1763637028651,0.02674,91784.0,91783.0,0.21790527]
[1763637029057,0.21790604,91783.0,91781.0,0.0108955]
[1763637029369,0.02674,91784.0,91781.0,0.0108955]
[1763637029555,0.21790554,91783.0,91780.0,0.21791031]
[1763637029756,0.01128,91784.0,91781.0,0.21790986]
[1763637029980,0.01128,91784.0,91783.0,0.21790527]
[1763637030441,0.01128,91784.0,91781.0,0.0108955]
[1763637030605,0.01539,91782.0,91781.0,0.0108955]
[1763637031268,0.01539,91782.0,91781.0,0.22880552]
[1763637031432,0.01128,91784.0,91783.0,0.21790527]
[1763637031842,0.01128,91784.0,91781.0,0.22880531]
[1763637032252,0.01128,91784.0,91782.0,0.21790603]
[1763637032630,0.00037788,91783.0,91781.0,0.0108955]
[1763637032837,0.22918527,91784.0,91781.0,0.22880551]
[1763637033151,5.055e-05,91783.0,91781.0,0.22880551]
[1763637033314,5.055e-05,91783.0,91781.0,0.30066551]
[1763637033512,5.055e-05,91783.0,91782.0,0.21790765]
[1763637033716,5.055e-05,91783.0,91781.0,0.0827555]
[1763637034135,5.055e-05,91783.0,91782.0,0.21790765]
[1763637034342,5.055e-05,91783.0,91781.0,0.22880499]
[1763637034818,0.21795721,91783.0,91780.0,0.22880674]
[1763637035023,5.055e-05,91783.0,91782.0,0.21790765]
[1763637035831,5.055e-05,91783.0,91781.0,0.21790983]
[1763637036187,5.055e-05,91783.0,91782.0,0.21790765]
[1763637037934,5.055e-05,91783.0,91781.0,0.19667674]
[1763637038137,0.00034881,91782.0,91781.0,0.26532437]
[1763637042928,0.00034881,91782.0,91781.0,0.19667674]
[1763637043130,0.00034881,91782.0,91781.0,0.2075595]
[1763637044787,0.00034881,91782.0,91781.0,0.2209595]
[1763637046303,0.00034881,91782.0,91781.0,0.28646199]
[1763637046433,0.00034881,91782.0,91781.0,0.27557923]
[1763637046621,0.00034881,91782.0,91781.0,0.37978941]
[1763637047024,0.00034881,91782.0,91781.0,0.43859795]
[1763637048064,0.00034881,91782.0,91781.0,0.37978941]
[1763637049893,0.00034881,91782.0,91781.0,0.36638941]
[1763637050610,0.00034881,91782.0,91781.0,0.37978941]
[1763637051527,0.00034881,91782.0,91781.0,0.39117941]
[1763637058489,7.642e-05,91782.0,91781.0,0.39117941]
[1763637059525,7.642e-05,91782.0,91781.0,0.33907692]
[1763637059921,7.642e-05,91782.0,91781.0,0.32567692]
[1763637061193,7.642e-05,91782.0,91781.0,0.33907692]
[1763637061408,7.642e-05,91782.0,91781.0,0.39117941]
[1763637061606,1.187e-05,91782.0,91781.0,0.71785941]
[1763637063005,1.187e-05,91782.0,91781.0,0.71885941]
[1763637063300,1.187e-05,91782.0,91781.0,0.71985941]
[1763637064149,1.187e-05,91782.0,91781.0,0.71885941]
[1763637064373,1.187e-05,91782.0,91781.0,0.71985941]
[1763637064762,1.187e-05,91782.0,91781.0,0.71885941]
[1763637064971,1.187e-05,91782.0,91781.0,0.71985941]
[1763637069816,1.187e-05,91782.0,91781.0,0.71617941]
[1763637070023,1.187e-05,91782.0,91781.0,0.71985941]
[1763637070239,1.187e-05,91782.0,91781.0,0.70645941]
[1763637070889,1.187e-05,91782.0,91781.0,0.71985941]
[1763637072377,1.187e-05,91782.0,91781.0,0.86725941]
[1763637074604,1.187e-05,91782.0,91781.0,0.67058267]
[1763637074795,1.187e-05,91782.0,91781.0,0.88849089]
[1763637084729,5.055e-05,91783.0,91782.0,0.59301014]
[1763637084933,5.055e-05,91783.0,91782.0,0.66793653]
[1763637085348,5.055e-05,91783.0,91782.0,0.68008653]
[1763637086003,5.055e-05,91783.0,91782.0,0.68108653]
[1763637087289,5.055e-05,91783.0,91782.0,0.68208653]
[1763637090007,0.01775055,91810.0,91808.0,0.21784502]
[1763637090209,0.01817236,91810.0,91808.0,0.26468221]
[1763637090432,0.23601501,91810.0,91808.0,0.04683719]
[1763637090628,0.21784356,91809.0,91808.0,0.04683719]
[1763637090840,0.00078454,91809.0,91807.0,0.21784645]
[1763637091047,0.05042181,91810.0,91807.0,0.22873886]
[1763637091418,0.05242181,91810.0,91809.0,0.21784356]
[1763637091621,0.05142181,91810.0,91809.0,0.21784356]
[1763637092026,0.05142181,91810.0,91809.0,0.32060646]
[1763637092227,0.05042181,91810.0,91809.0,0.33643646]
[1763637092370,0.05042181,91810.0,91809.0,0.39530582]
[1763637093240,0.05042181,91810.0,91809.0,0.33643646]
[1763637093455,0.05142181,91810.0,91809.0,0.33643646]
[1763637093669,0.05142181,91810.0,91809.0,0.1774344]
[1763637093947,0.26826365,91810.0,91808.0,0.00475]
[1763637094158,0.26926365,91810.0,91808.0,0.2225959]
[1763637094394,0.05142181,91810.0,91808.0,0.2225959]
[1763637094780,0.26826348,91810.0,91808.0,0.00475]
[1763637095014,0.05042181,91810.0,91808.0,0.00475]
[1763637095207,0.05142181,91810.0,91809.0,0.21784356]
[1763637096396,0.05042181,91810.0,91809.0,0.31988244]
[1763637096802,0.0522354,91810.0,91809.0,0.31988244]
[1763637098531,0.0522354,91810.0,91809.0,0.23367356]
[1763637099928,0.0522354,91810.0,91809.0,0.29251506]
[1763637103709,0.0522354,91810.0,91809.0,0.31066506]
[1763637104733,0.0522354,91810.0,91809.0,0.25182356]
[1763637105215,0.0522354,91810.0,91809.0,0.28452533]
[1763637105216,0.0022354,91810.0,91809.0,0.28452533]
[1763637105419,0.0022354,91810.0,91809.0,0.39369027]
[1763637106046,0.0012354,91810.0,91809.0,0.39369027]
[1763637106240,0.0012354,91810.0,91809.0,0.39469027]
[1763637106473,0.0012354,91810.0,91809.0,0.39569027]
[1763637107442,0.0012354,91810.0,91809.0,0.39469027]
[1763637107786,0.0012354,91810.0,91809.0,0.39569027]
[1763637112951,0.0012354,91810.0,91809.0,0.77079276]
[1763637113501,0.0002,91840.0,91809.0,0.77079276]
[1763637113502,0.0002,91840.0,91839.0,0.2177724]
[1763637113717,0.00030109,91840.0,91839.0,0.2336024]
[1763637113868,0.00030109,91840.0,91839.0,0.28265006]
[1763637114069,0.00030109,91840.0,91839.0,0.32582169]
[1763637114788,0.00030109,91840.0,91839.0,0.10804929]
[1763637115157,0.00130109,91840.0,91839.0,0.32582169]
[1763637115560,0.00230109,91840.0,91839.0,0.10804929]
[1763637115998,0.00230109,91840.0,91839.0,0.32582169]
[1763637119252,0.00317237,91840.0,91839.0,0.32582169]
[1763637119864,0.00317237,91840.0,91839.0,0.31852912]
[1763637120978,0.00317237,91840.0,91839.0,0.32938912]
[1763637121526,0.00217237,91840.0,91839.0,0.7410022]
[1763637121737,0.00117237,91840.0,91839.0,0.7446822]
[1763637122917,0.00117237,91840.0,91839.0,0.7456822]
[1763637123646,0.00117237,91840.0,91839.0,0.82382937]
[1763637124279,0.00117237,91840.0,91839.0,0.7456822]
[1763637124772,0.00117237,91840.0,91839.0,0.7430022]
[1763637124976,0.00117237,91840.0,91839.0,0.7466822]
[1763637127579,2.37e-06,91840.0,91839.0,0.7466822]
[1763637127802,0.0002,91850.0,91849.0,0.54074869]
[1763637127952,0.0002,91850.0,91849.0,0.63331709]
[1763637128190,0.0002,91850.0,91849.0,0.64417709]
[1763637128337,0.0002,91850.0,91849.0,0.69627958]
[1763637128520,0.0002,91850.0,91849.0,0.70063764]
[1763637128932,0.0002,91850.0,91849.0,0.70163764]
[1763637129545,0.0002,91850.0,91849.0,0.70263764]
[1763637131890,0.0002,91850.0,91849.0,0.85003764]
[1763637133403,0.00049036,91850.0,91849.0,0.85003764]
[1763637134353,0.00049036,91850.0,91849.0,0.90851481]
[1763637134556,0.00049036,91850.0,91849.0,0.85003764]
[1763637134903,0.00049036,91850.0,91849.0,0.78707515]
[1763637136494,0.00049036,91850.0,91849.0,0.79793515]
[1763637136697,0.00049036,91850.0,91849.0,0.56932646]
[1763637136892,0.00049036,91850.0,91849.0,0.78707515]
[1763637137094,0.00049036,91850.0,91849.0,0.56932646]
[1763637137350,0.00049036,91850.0,91849.0,0.78707515]
[1763637137543,0.00049036,91850.0,91849.0,0.56932646]
[1763637137753,0.00049036,91850.0,91849.0,0.42192646]
[1763637138154,0.00049036,91850.0,91849.0,0.08806646]
[1763637138335,0.00049036,91850.0,91849.0,0.01003806]
[1763637138531,0.21823668,91850.0,91849.0,0.01003806]
[1763637139308,0.00049036,91850.0,91849.0,0.01003806]
[1763637139503,0.00049036,91850.0,91849.0,0.00903806]
[1763637139504,0.21823668,91850.0,91849.0,0.00903806]
[1763637139745,0.21823668,91850.0,91849.0,0.00803806]
[1763637139949,0.21823668,91850.0,91849.0,0.08786123]
[1763637140354,0.21823668,91850.0,91849.0,0.00803806]
[1763637141296,0.00049036,91850.0,91849.0,0.22578675]
[1763637141489,0.21823668,91850.0,91849.0,0.00803806]
[1763637142273,0.00049036,91850.0,91849.0,0.00803806]
[1763637142644,0.00049036,91850.0,91849.0,0.22578675]
[1763637142839,0.00049036,91850.0,91849.0,0.117203]
[1763637143267,0.21823668,91850.0,91849.0,0.117203]
[1763637143521,0.00049036,91850.0,91849.0,0.117203]
[1763637144237,0.00049036,91850.0,91849.0,0.33495169]
[1763637144558,0.00049036,91850.0,91849.0,0.35667169]
[1763637144760,0.00049036,91850.0,91849.0,0.34581169]
[1763637146408,0.00049036,91850.0,91849.0,0.18654017]
[1763637146587,0.00049036,91850.0,91849.0,0.17568017]
[1763637147248,0.00049036,91850.0,91849.0,0.39342886]
[1763637147555,0.00049036,91850.0,91849.0,0.33495169]
[1763637148104,0.00049036,91850.0,91849.0,0.117203]
[1763637148306,0.00049036,91850.0,91849.0,0.113523]
[1763637148521,0.00049036,91850.0,91849.0,0.00803806]
[1763637149141,0.00049036,91850.0,91849.0,0.22578675]
[1763637149918,0.00049036,91850.0,91849.0,0.00803806]
[1763637150118,0.21823668,91850.0,91849.0,0.00803806]
[1763637150522,0.01088755,91848.0,91845.0,0.05875952]
[1763637150759,0.01108731,91850.0,91849.0,0.03268937]
[1763637150931,0.22883363,91850.0,91849.0,0.03268937]
[1763637151208,0.22883363,91850.0,91845.0,0.05875952]
[1763637151209,0.01584,91850.0,91845.0,0.0108879]
[1763637151411,0.01564,91846.0,91845.0,0.0108879]
[1763637151578,0.01564,91846.0,91844.0,0.03269346]
[1763637151758,0.2333958,91846.0,91844.0,0.03269346]
[1763637152122,0.01564,91846.0,91844.0,0.03269346]
[1763637152327,0.23339649,91846.0,91844.0,0.03269346]
[1763637152732,0.01564,91846.0,91845.0,0.21775817]
[1763637154175,0.01564,91846.0,91844.0,0.03269346]
[1763637154570,0.23339706,91846.0,91844.0,0.03269346]
[1763637154908,0.21775817,91845.0,91844.0,0.03269346]
[1763637155656,0.05,91847.0,91844.0,0.03269346]
[1763637155875,0.05,91847.0,91845.0,0.21775613]
[1763637156082,0.24122623,91846.0,91844.0,0.03269346]
[1763637156319,0.21775817,91845.0,91844.0,0.03269346]
[1763637156488,0.23281817,91845.0,91844.0,0.03269346]
[1763637156678,0.25628817,91845.0,91844.0,0.03269346]
[1763637157127,0.05,91847.0,91844.0,0.04358148]
[1763637157493,0.06088767,91847.0,91844.0,0.03269346]
[1763637157693,0.23281817,91845.0,91844.0,0.03269346]
[1763637158490,0.25628817,91845.0,91844.0,0.03269346]
[1763637158694,0.21776766,91841.0,91840.0,0.00368]
[1763637158907,0.23282766,91841.0,91840.0,0.03637346]
[1763637159284,0.25629766,91841.0,91840.0,0.03637346]
[1763637160137,0.25629766,91841.0,91840.0,0.03269346]
[1763637160356,0.22867098,91835.0,91832.0,0.05875952]
[1763637160598,0.01088885,91837.0,91835.0,0.00368]
[1763637160599,0.2286663,91837.0,91835.0,0.00368]
[1763637160813,0.21777952,91836.0,91835.0,0.0624294]
[1763637161182,0.21777952,91836.0,91835.0,0.00368]
[1763637162292,0.25630952,91836.0,91835.0,0.00368]
[1763637162514,0.21778663,91833.0,91832.0,0.0587494]
[1763637162718,0.21778663,91833.0,91830.0,0.00368]
[1763637162719,0.21779137,91831.0,91830.0,0.00368]
[1763637162910,0.21779137,91831.0,91830.0,0.00378109]
[1763637162911,0.23285137,91831.0,91830.0,0.00378109]
[1763637163190,0.25632137,91831.0,91830.0,0.00378109]
[1763637163575,0.25632137,91831.0,91830.0,0.00010109]
[1763637165891,0.25832137,91831.0,91830.0,0.00010109]
[1763637169916,0.04053,91831.0,91830.0,0.00010109]
[1763637170143,0.23485137,91831.0,91830.0,0.00010109]
[1763637170344,0.25832137,91831.0,91830.0,0.00010109]
[1763637170966,0.25732137,91831.0,91830.0,0.00010109]
[1763637171174,0.25632137,91831.0,91830.0,0.00010109]
[1763637171314,0.25732137,91831.0,91830.0,0.00010109]
[1763637171507,0.25832137,91831.0,91830.0,0.00010109]
[1763637171713,0.33320726,91831.0,91830.0,0.00010109]
[1763637171933,0.25832137,91831.0,91830.0,0.00010109]
[1763637180587,0.65369083,91831.0,91830.0,1.09e-06]
[1763637180787,0.21783644,91812.0,91811.0,0.00130011]
[1763637181028,0.26989641,91812.0,91811.0,0.00130011]
[1763637181211,0.27158277,91812.0,91811.0,0.00130011]
[1763637182359,0.2918381,91812.0,91811.0,0.00130011]
[1763637183100,0.2928381,91812.0,91811.0,0.00130011]
[1763637184040,0.2938381,91812.0,91811.0,0.00130011]
[1763637185206,0.31729304,91812.0,91811.0,0.00130011]
[1763637185687,0.2938381,91812.0,91811.0,0.00130011]
[1763637188510,0.2901581,91812.0,91811.0,0.00130011]
[1763637188885,0.26990277,91812.0,91811.0,0.00130011]
[1763637189271,0.29017107,91812.0,91811.0,0.00130011]
[1763637193369,0.2901946,91812.0,91811.0,0.00130011]
[1763637194952,0.21784866,91807.0,91804.0,0.06559657]
[1763637195155,0.02823,91805.0,91804.0,0.06559657]
[1763637195361,0.21785792,91803.0,91800.0,0.46254467]
[1763637195534,0.21785792,91803.0,91744.0,3.1062944]
[1763637195535,0.01663,91801.0,91795.0,0.45165143]
[1763637195700,0.01089372,91796.0,91791.0,0.01089431]
[1763637195903,0.21787916,91794.0,91793.0,0.05358698]
[1763637196133,0.02823,91793.0,91790.0,0.01089443]
[1763637196332,0.05215,91793.0,91791.0,0.21788476]
[1763637196568,0.05215,91793.0,91788.0,0.01089467]
[1763637196569,0.05215,91793.0,91792.0,0.00055215]
[1763637197226,0.27003153,91793.0,91792.0,0.00055215]
[1763637197488,0.05215,91793.0,91792.0,0.21843606]
[1763637197843,0.02823,91793.0,91792.0,0.21843606]
[1763637198041,0.02823,91793.0,91792.0,0.00055215]
[1763637200017,0.24611153,91793.0,91792.0,0.00055215]
[1763637200213,0.02823,91793.0,91792.0,0.00055215]
[1763637200572,0.02823,91793.0,91792.0,0.21843606]
[1763637200773,0.02823,91793.0,91792.0,0.00055215]
[1763637201290,0.02823,91793.0,91792.0,0.21843606]
[1763637201468,0.02823,91793.0,91792.0,0.00055215]
[1763637201641,0.02823,91793.0,91792.0,0.21843606]
[1763637202123,0.0116,91793.0,91792.0,0.21843606]
[1763637202852,0.0116,91793.0,91792.0,0.00055215]
[1763637203695,0.0116,91793.0,91792.0,0.21843606]
[1763637203891,0.22948153,91793.0,91792.0,0.00055215]
[1763637204103,0.27003153,91793.0,91792.0,0.00055215]
[1763637204260,0.05215,91793.0,91792.0,0.00055215]
[1763637204466,0.27003153,91793.0,91792.0,0.00055215]
[1763637207375,0.05215,91793.0,91792.0,0.00055215]
[1763637207585,0.05215,91793.0,91792.0,0.21843606]
[1763637208594,0.02823,91793.0,91792.0,0.21843606]
[1763637208791,0.0116,91798.0,91796.0,0.21787376]
[1763637209220,0.0116,91798.0,91797.0,0.00040682]
[1763637209416,0.05459822,91798.0,91797.0,0.00040682]
[1763637209635,0.09786192,91798.0,91797.0,0.00040682]
[1763637210042,0.09786192,91798.0,91797.0,0.21827886]
[1763637210194,0.0775137,91798.0,91797.0,0.21827886]
[1763637210407,0.07062817,91798.0,91797.0,0.00040682]
[1763637210608,0.09786187,91798.0,91797.0,0.00040682]
[1763637210829,0.09786187,91798.0,91797.0,0.21827886]
[1763637211184,0.0775137,91798.0,91797.0,0.21827886]
[1763637211550,0.0785137,91798.0,91797.0,0.21827886]
[1763637212352,0.05128,91798.0,91797.0,0.21827886]
[1763637212692,0.0126,91798.0,91797.0,0.21827886]
[1763637213063,0.001,91798.0,91797.0,0.21827886]
[1763637213220,0.001,91798.0,91797.0,0.10760137]
[1763637213426,0.001,91798.0,91797.0,0.32547341]
[1763637213874,0.001,91798.0,91797.0,0.22913886]
[1763637214219,0.05,91799.0,91798.0,0.21786967]
[1763637214478,0.05,91799.0,91797.0,0.21787204]
[1763637214636,0.05,91799.0,91796.0,0.01089372]
[1763637214841,0.05,91799.0,91798.0,0.21786967]
[1763637216278,0.05,91799.0,91798.0,0.29430489]
[1763637218041,0.05,91799.0,91798.0,0.22872967]
[1763637219219,0.05,91799.0,91795.0,0.01089383]
[1763637219425,0.05,91799.0,91797.0,0.21787204]
[1763637219619,0.05,91799.0,91798.0,0.21824743]
[1763637222013,0.05,91799.0,91798.0,0.22910743]
[1763637222269,0.05,91799.0,91798.0,0.00037776]
[1763637223794,0.3472407,91799.0,91798.0,0.00037776]
[1763637223988,0.32000729,91799.0,91798.0,0.00037776]
[1763637227130,0.32100729,91799.0,91798.0,0.00037776]
[1763637230653,0.10314,91799.0,91798.0,0.00037776]
[1763637230874,0.051,91799.0,91798.0,0.00037776]
[1763637231290,0.051,91799.0,91798.0,0.21824743]
[1763637231697,0.051,91799.0,91798.0,0.00037776]
[1763637231871,0.051,91799.0,91798.0,0.21824743]
[1763637234186,0.051,91799.0,91798.0,0.31458586]
[1763637234597,0.051,91799.0,91798.0,0.21824743]
[1763637236561,0.05,91799.0,91798.0,0.21824743]
[1763637237746,0.06191,91799.0,91798.0,0.00037776]
[1763637238402,0.27977729,91799.0,91798.0,0.00037776]
[1763637238605,0.06191,91799.0,91798.0,0.21824743]
[1763637238822,0.06191,91799.0,91798.0,0.00037776]
[1763637239227,0.27977729,91799.0,91798.0,0.00037776]
[1763637240131,0.06191,91799.0,91798.0,0.21824743]
[1763637240318,0.27977729,91799.0,91798.0,0.00037776]
[1763637240731,0.29549729,91799.0,91798.0,0.00037776]
[1763637240934,0.32000729,91799.0,91798.0,0.00037776]
[1763637242139,0.32000729,91799.0,91798.0,0.05923102]
[1763637242340,0.01239,91790.0,91789.0,0.57509585]
[1763637242546,0.01239,91790.0,91789.0,0.27674805]
[1763637244695,0.05197,91790.0,91789.0,0.27674805]
[1763637244895,0.02893,91790.0,91789.0,0.27674805]
[1763637245035,0.01239,91790.0,91789.0,0.05885738]
[1763637245252,0.01239,91790.0,91789.0,0.06973539]
[1763637246139,0.21789103,91789.0,91788.0,0.00368]
[1763637246312,0.05197,91790.0,91788.0,0.22157208]
[1763637246882,0.02893,91790.0,91788.0,0.22157208]
[1763637247338,0.02893,91790.0,91789.0,0.21789103]
[1763637247547,0.24681865,91790.0,91788.0,0.00368]
[1763637247920,0.21789103,91789.0,91788.0,0.00368]
[1763637248298,0.21789103,91789.0,91788.0,0.00397064]
[1763637248903,0.25747103,91789.0,91788.0,0.00397064]
[1763637249319,0.03958,91789.0,91788.0,0.00397064]
[1763637249731,0.25747103,91789.0,91788.0,0.00397064]
[1763637250917,0.01654,91789.0,91788.0,0.00397064]
[1763637251473,0.03958,91789.0,91788.0,0.00397064]
[1763637251855,0.25747103,91789.0,91788.0,0.00397064]
[1763637252285,0.03958,91789.0,91788.0,0.00397064]
[1763637253201,0.03958,91789.0,91788.0,0.22186404]
[1763637253364,0.01239,91790.0,91789.0,0.21789103]
[1763637253793,0.01239,91790.0,91789.0,0.2181526]
[1763637255501,0.26985865,91790.0,91789.0,0.00026157]
[1763637257624,0.05197,91790.0,91789.0,0.00026157]
[1763637258026,0.05197,91790.0,91789.0,0.2181526]
[1763637258320,0.05197,91790.0,91789.0,0.00026157]
[1763637258707,0.05197,91790.0,91789.0,0.2181526]
[1763637261114,0.05197,91790.0,91789.0,0.00026157]
[1763637261316,0.05197,91790.0,91789.0,0.2181526]
[1763637261744,0.02893,91790.0,91789.0,0.2181526]
[1763637262604,0.01239,91790.0,91789.0,0.2181526]
[1763637264859,0.03543,91797.0,91795.0,0.21787442]
[1763637265031,0.01239,91797.0,91796.0,0.21787441]
[1763637265203,0.01654,91796.0,91794.0,0.28764196]
[1763637265419,0.01654,91795.0,91794.0,0.2287723]
[1763637265621,0.25745679,91795.0,91793.0,0.27675087]
[1763637265818,0.01239,91794.0,91793.0,0.05886966]
[1763637266122,0.039624,91797.0,91794.0,0.01089395]
[1763637266323,0.01239,91797.0,91796.0,0.21787441]
[1763637266501,0.05,91799.0,91797.0,0.21787024]
[1763637267145,0.21787204,91797.0,91796.0,0.01086]
[1763637267476,0.06239,91799.0,91797.0,0.21787066]
[1763637267681,0.05,91799.0,91797.0,0.21787084]
[1763637267882,0.26786729,91799.0,91798.0,0.05887644]
[1763637269130,0.28109729,91799.0,91798.0,0.05887644]
[1763637269953,0.051,91799.0,91798.0,0.27674611]
[1763637270222,0.06323,91799.0,91798.0,0.27674611]
[1763637270886,0.28109729,91799.0,91798.0,0.05887644]
[1763637271259,0.28109729,91799.0,91797.0,0.21787164]
[1763637271461,0.28109729,91799.0,91798.0,0.05888682]
[1763637271680,0.28109729,91799.0,91796.0,0.01086]
[1763637271681,0.21787023,91798.0,91796.0,0.01086]
[1763637271877,0.21787204,91797.0,91796.0,0.01086]
[1763637272316,0.22877093,91795.0,91792.0,0.21788216]
[1763637272691,0.21787989,91794.0,91792.0,0.21788216]
[1763637272888,0.22876564,91797.0,91793.0,0.2178795]
[1763637273235,0.0272343,91796.0,91792.0,0.01089419]
[1763637273568,0.24511079,91796.0,91793.0,0.21787932]
[1763637273768,0.21787486,91796.0,91792.0,0.01089419]
[1763637273981,0.25600288,91796.0,91793.0,0.22877557]
[1763637274192,0.21787847,91795.0,91792.0,0.22877748]
[1763637274614,0.06223,91799.0,91797.0,0.21787165]
[1763637274826,0.06223,91799.0,91798.0,0.27675261]
[1763637275033,0.06223,91799.0,91798.0,0.05888294]
[1763637275244,0.06223,91799.0,91798.0,0.27675261]
[1763637276997,0.06323,91799.0,91798.0,0.27675261]
[1763637277121,0.051,91799.0,91798.0,0.22872967]
[1763637277566,0.051,91799.0,91798.0,0.21786967]
[1763637277766,0.05,91799.0,91798.0,0.21786967]
[1763637281976,0.05,91799.0,91797.0,0.21787165]
[1763637282594,0.05,91799.0,91798.0,0.21786967]
[1763637283850,0.05,91799.0,91797.0,0.21787165]
[1763637284868,0.05,91799.0,91798.0,0.21786967]
[1763637285003,0.05,91799.0,91797.0,0.21787165]
[1763637285205,0.26786784,91799.0,91796.0,0.01089372]
[1763637285603,0.26786784,91799.0,91796.0,0.22876627]
[1763637286752,0.05,91799.0,91797.0,0.21787125]
[1763637286950,0.05,91799.0,91798.0,0.21786967]
[1763637291460,0.05,91799.0,91797.0,0.05887505]
[1763637291682,0.05,91799.0,91797.0,0.27674699]
[1763637292094,0.21786967,91798.0,91797.0,0.05887505]
[1763637292858,0.21786967,91798.0,91797.0,0.09158445]
[1763637293672,0.26786806,91799.0,91797.0,0.09158445]
[1763637293673,0.05,91799.0,91797.0,0.09158445]
[1763637293877,0.21786967,91798.0,91797.0,0.09158445]
[1763637294302,0.21786967,91798.0,91797.0,0.0327094]
[1763637295883,0.26786934,91799.0,91797.0,0.0327094]
[1763637296088,0.05,91799.0,91798.0,0.0588967]
[1763637296915,0.05,91799.0,91797.0,0.0327094]
[1763637297724,0.21786967,91798.0,91797.0,0.0327094]
[1763637298332,0.26786926,91799.0,91797.0,0.0327094]
[1763637298539,0.05,91799.0,91798.0,0.21786967]
[1763637298754,0.05,91799.0,91797.0,0.0327094]
[1763637298931,0.21786967,91798.0,91797.0,0.0327094]
[1763637299788,0.26786947,91799.0,91797.0,0.0327094]
[1763637300492,0.05,91799.0,91797.0,0.0327094]
[1763637300686,0.05,91799.0,91798.0,0.21786967]
[1763637300912,0.26786729,91799.0,91797.0,0.0327094]
[1763637301049,0.21786967,91798.0,91797.0,0.0327094]
[1763637301252,0.26786729,91799.0,91797.0,0.0327094]
[1763637301452,0.21786967,91798.0,91797.0,0.0327094]
[1763637301650,0.21786967,91798.0,91696.0,0.02844704]
[1763637301651,0.01089407,91793.0,91788.0,0.07805122]
[1763637301898,0.25631967,91798.0,91772.0,0.05891409]
[1763637301899,0.21792189,91776.0,91772.0,0.05891409]
[1763637302096,0.21792189,91776.0,91755.0,0.01089858]
[1763637302097,0.21793614,91770.0,91769.0,0.05891409]
[1763637302298,0.01089728,91766.0,91763.0,0.05891409]
[1763637302503,0.21795514,91762.0,91761.0,0.09163619]
[1763637302710,0.21795514,91762.0,91761.0,0.0327221]
[1763637302901,0.21797652,91753.0,91752.0,0.05891409]
[1763637303105,0.01089894,91752.0,91751.0,0.03272606]
[1763637303349,0.01089894,91752.0,91751.0,0.00042181]
[1763637303350,0.25367783,91752.0,91751.0,0.00042181]
[1763637303486,0.26879783,91752.0,91751.0,0.00042181]
[1763637305137,0.26979783,91752.0,91751.0,0.00042181]
[1763637305728,0.27079783,91752.0,91751.0,0.00042181]
[1763637305973,0.04192,91752.0,91751.0,0.00042181]
[1763637306185,0.04092,91752.0,91751.0,0.00042181]
[1763637306367,0.04292,91752.0,91751.0,0.00042181]
[1763637306722,0.04192,91752.0,91751.0,0.00042181]
[1763637307250,0.04092,91752.0,91751.0,0.00042181]
[1763637307449,0.04192,91752.0,91751.0,0.00042181]
[1763637311170,0.002,91752.0,91751.0,0.0233532]
[1763637311488,0.04192,91752.0,91751.0,0.0015558]
[1763637312247,0.001,91752.0,91751.0,0.0015558]
[1763637312445,0.05,91753.0,91752.0,0.21797889]
[1763637312896,0.05,91753.0,91752.0,0.21908379]
[1763637313918,0.05,91753.0,91752.0,0.30226404]
[1763637314115,0.0119,91764.0,91763.0,0.21795276]
[1763637314404,0.0367,91773.0,91768.0,0.21794089]
[1763637314712,0.0119,91773.0,91768.0,0.21794089]
[1763637314886,0.0119,91773.0,91772.0,0.21793139]
[1763637315774,0.0119,91773.0,91770.0,0.0108968]
[1763637315981,0.0119,91773.0,91771.0,0.21793291]
[1763637316184,0.0119,91773.0,91770.0,0.22883154]
[1763637316393,0.0129,91773.0,91770.0,0.22883154]
[1763637316599,0.0139,91773.0,91771.0,0.21793229]
[1763637316806,0.0129,91773.0,91771.0,0.21793229]
[1763637317035,0.0129,91773.0,91772.0,0.21793139]
[1763637317036,0.001,91773.0,91772.0,0.21793139]
[1763637317445,0.002,91773.0,91772.0,0.21793139]
[1763637317887,0.002,91773.0,91769.0,0.22883538]
[1763637318058,0.002,91773.0,91771.0,0.21793348]
[1763637318564,0.05,91774.0,91771.0,0.21793348]
[1763637318766,0.001,91773.0,91771.0,0.21793348]
[1763637318985,0.002,91773.0,91771.0,0.21793348]
[1763637319344,0.001,91773.0,91772.0,0.21793139]
[1763637319546,0.001,91773.0,91771.0,0.04904766]
[1763637319547,0.21793139,91772.0,91771.0,0.04904766]
[1763637319747,0.21793139,91772.0,91767.0,0.22883868]
[1763637319748,0.01089692,91769.0,91765.0,0.21794724]
[1763637319949,0.01089692,91769.0,91766.0,0.07296761]
[1763637320151,0.01089692,91769.0,91766.0,0.08386489]
[1763637320360,0.05,91774.0,91771.0,0.01089668]
[1763637320559,0.05,91774.0,91769.0,0.01089692]
[1763637320560,0.25806667,91773.0,91769.0,0.22883328]
[1763637320812,0.002,91773.0,91770.0,0.0108968]
[1763637320987,0.002,91773.0,91772.0,0.21793139]
[1763637321874,0.05,91774.0,91773.0,0.21792902]
[1763637322057,0.05,91774.0,91773.0,0.32654531]
[1763637322270,0.05,91774.0,91773.0,0.33763531]